{"text_format":"1","workbook":"xlsx","n_sheets":3,"sheets":["Suspensions","Biscottes","Tabelle1"],"not_rendered":{"charts":0,"images":0,"macros":1,"external_links":0,"defined_names":2,"comments":1,"pivot_tables":0},"unopened":[],"bounds":{"document_bytes":16777216,"sheet_cells":100000,"rows_first":2000,"rows_last":500,"rows_between":2000,"halvings":0,"cell_chars":16384,"cell_head_chars":4096},"cells_cut":0,"cells_raw":0,"read":"whole","date_system":"1900"}

{"sheet":"Suspensions","index":0,"n_rows":37,"n_cols":33,"rows_kept":37,"cut":false,"hidden":false,"merged":[]}
[null,"Brest - RCS","RCS - Auxerre","Sochaux - RCS","RCS - Reims","Oberlauterbach - RCS","Ajaccio AC - RCS","RCS - Laval","Le Havre - RCS","RCS - Sarre-Union","RCS - Lens","RCS - Niort","RCS - Epinal","Amiens - RCS","RCS - Tours","Nîmes - RCS","RCS - Ajaccio Gazélec","Troyes - RCS","RCS - Orléans","Red Star - RCS","RCS - Clermont","Valenciennes - RCS","RCS - Brest","Auxerre - RCS","RCS - Sochaux","Reims - RCS","RCS - Ajaccio AC","Laval - RCS","RCS - Le Havre","Lens - RCS","Niort - RCS","RCS - Bourg-Péronnas","Sursis"]
["Gardiens de but"]
["Bonnefoi Landry"]
["Oukidja Alexandre"]
["Défenseurs latéraux, droite"]
["Marester Eric",null,"x"]
["Défenseurs centraux"]
["Mangane Kader"]
["Saad Felipe","x","x",null,null,null,null,"x"]
["Salmier Yoann"]
["Seka Ernest"]
["Défenseurs latéraux, gauche"]
["N'Dour Abdallah",null,null,null,null,null,null,null,"x",null,null,null,null,null,null,null,null,"x"]
["Milieux défensifs"]
["Aholou Jean-Eudes"]
["Dos Santos Laurent"]
["Gonçalves Anthony"]
["Grimm Jérémy",null,null,null,null,"x",null,null,null,null,null,null,"x"]
["N'Doye Mayoro"]
["Nogueira Vincent",null,null,null,null,null,null,null,null,null,null,null,"x"]
["Othon Quentin"]
["Milieux offensifs"]
["Belahmeur Abdelhak"]
["Gragnic Vincent"]
["Liénard Dimitri","x","x"]
["Pouye Oumar"]
["Sacko Ihsan"]
["Attaquants"]
["Bahoken Stéphane",null,null,null,null,null,null,null,null,null,null,null,null,null,null,null,null,"x"]
["Benkaïd Hicham"]
["Blayac Jérémy"]
["Boutaïb Khalid"]
["Guillaume Baptiste"]
["Encadrement"]
["Laurey Thierry"]
["Pietra François"]
["Roi Sébastien","x",null,null,null,null,null,null,null,null,null,null,null,null,null,null,null,null,null,null,null,null,null,null,null,null,null,null,null,null,null,null,"x"]

{"sheet":"Biscottes","index":1,"n_rows":40,"n_cols":111,"rows_kept":40,"cut":false,"hidden":false,"merged":[]}
[null,"Bourg-en-Bresse - RCS","Bourg-en-Bresse - RCS","RCS - Amiens","RCS - Amiens","RCS- Niort","RCS- Niort","Tours - RCS","Tours - RCS","RCS - Nîmes","RCS - Nîmes"," RCS II - Sarreguemines"," RCS II - Sarreguemines","Auxerre - RCS","Auxerre - RCS","Ajaccio Gazélec - RCS","Ajaccio Gazélec - RCS","RCS - Troyes","RCS - Troyes","Orléans - RCS","Orléans - RCS","RCS II - Nancy II","RCS II - Nancy II","RCS - Red Star","RCS - Red Star","Clermont - RCS","Clermont - RCS","RCS - Valenciennes","RCS - Valenciennes","Biesheim - RCS","Biesheim - RCS","Brest - RCS","Brest - RCS","RCS II - Lunéville","RCS II - Lunéville","RCS - Auxerre","RCS - Auxerre","Sochaux - RCS","Sochaux - RCS","Haguenau - RCS II","Haguenau - RCS II","RCS - Reims","RCS - Reims","RCS II - Forbach","RCS II - Forbach","Oberlauterbach - RCS","Oberlauterbach - RCS","Ajaccio AC - RCS","Ajaccio AC - RCS","Sarre-Union - RCS II","Sarre-Union - RCS II","RCS - Laval","RCS - Laval","RCS II - Metz II","RCS II - Metz II","Le Havre - RCS","Le Havre - RCS","RCS - Sarre-Union","RCS - Sarre-Union","RCS - Lens","RCS - Lens","Schiltigheim- RCS II","Schiltigheim- RCS II","RCS - Niort","RCS - Niort","RCS - Epinal","RCS - Epinal","Amiens - RCS","Amiens - RCS","RCS - Tours","RCS - Tours","Nîmes - RCS","Nîmes - RCS","Le Poiré-sur-Vie - RCS","Le Poiré-sur-Vie - RCS","RCS - Ajaccio Gazélec","RCS - Ajaccio Gazélec","Troyes - RCS","Troyes - RCS","RCS - Orléans","RCS - Orléans","Red Star - RCS","Red Star - RCS","RCS - Clermont","RCS - Clermont","Valenciennes - RCS","Valenciennes - RCS","RCS - Brest","RCS - Brest","Auxerre - RCS","Auxerre - RCS","RCS - Sochaux","RCS - Sochaux","Reims - RCS","Reims - RCS","RCS - Ajaccio AC","RCS - Ajaccio AC","Laval - RCS","Laval - RCS","RCS - Le Havre","RCS - Le Havre","Lens - RCS","Lens - RCS","Niort - RCS","Niort - RCS","RCS - Bourg-Péronnas","RCS - Bourg-Péronnas","Somme","Joués","Biscottes","Rouges"]
["Match joué","x",null,"x",null,"x",null,"x",null,"x",null,"x",null,"x",null,"x",null,"x",null,"x",null,"x",null,"x",null,"x",null,"x",null,"x",null,"x",null,"x",null,"x",null,"x",null,"x",null,"x",null,"x",null,"x",null,"x",null,"x",null,"x",null,"x",null,"x",null,"x",null,"x",null,"x",null,"x",null,"x",null,"x",null,null,null,"x",null,"x",null,null,null,null,null,null,null,null,null,null,null,null,null,null,null,null,null,null,null,null,null,null,null,null,null,null,null,null,null,null,null,null,null,{"$f":"COUNTIF($B2:$DA2,\"x\")","v":36}]
["Date","2016-07-29","2016-07-29","2016-08-06","2016-08-06","2016-08-09","2016-08-09","2016-08-12","2016-08-12","2016-08-19","2016-08-19","2016-08-20","2016-08-20","2016-08-23","2016-08-23","2016-08-26","2016-08-26","2016-09-12","2016-09-12","2016-09-16","2016-09-16","2016-09-17","2016-09-17","2016-09-19","2016-09-19","2016-09-23","2016-09-23","2016-10-01","2016-10-01","2016-10-01","2016-10-01","2016-10-15","2016-10-15","2016-10-15","2016-10-15","2016-10-21","2016-10-21","2016-10-29","2016-10-29","2016-10-29","2016-10-29","2016-11-05","2016-11-05","2016-11-05","2016-11-05","2016-11-12","2016-11-12","2016-11-18","2016-11-18","2016-11-19","2016-11-19","2016-11-25","2016-11-25","2016-11-26","2016-11-26","2016-11-29","2016-11-29","2016-12-03","2016-12-03","2016-12-10","2016-12-10","2016-12-10","2016-12-10","2016-12-16","2016-12-16","2017-01-07","2017-01-07","2017-01-14","2017-01-14",null,null,"2017-01-27","2017-01-27","2017-01-31","2007-01-31"]
["Gardiens de but"]
["Bonnefoi Landry",null,null,null,null,null,"j",null,null,null,null,null,null,null,"j",null,null,null,null,null,null,null,null,null,null,null,null,null,null,null,null,null,null,null,null,null,null,null,null,null,null,null,null,null,null,null,"j",null,null,null,null,null,null,null,null,null,null,null,"j",null,null,null,null,null,null,"x","j",null,null,null,null,null,null,null,"j",null,null,null,null,null,null,null,null,null,null,null,null,null,null,null,null,null,null,null,null,null,null,null,null,null,null,null,null,null,null,null,null,null,{"$f":"COUNTIF($B5:$DB5,\"j\")","v":6},{"$f":"COUNTIF($B5:$DB5,\"x\")+COUNTIF($B5:$DB5,\"xx\")","v":1},{"$f":"COUNTIF($B5:$DB5,\"r\")+COUNTIF($B5:$DB5,\"xx\")","v":0}]
["Oukidja Alexandre",null,"j",null,"j",null,null,null,"j",null,"j",null,null,null,null,"x","j",null,"j",null,"j",null,null,null,"j",null,"j",null,"j",null,null,null,"j",null,null,null,"j",null,"j",null,null,null,"j",null,null,null,null,null,"j",null,null,null,"j",null,null,null,"j",null,null,null,"j",null,null,null,"j",null,null,null,"j",null,null,null,"j",null,null,null,null,null,null,null,null,null,null,null,null,null,null,null,null,null,null,null,null,null,null,null,null,null,null,null,null,null,null,null,null,null,null,null,{"$f":"COUNTIF($B6:$DB6,\"j\")","v":21},{"$f":"COUNTIF($B6:$DB6,\"x\")+COUNTIF($B6:$DB6,\"xx\")","v":1},{"$f":"COUNTIF($B6:$DB6,\"r\")+COUNTIF($B6:$DB6,\"xx\")","v":0}]
["Défenseurs latéraux, droite"]
["Marester Eric",null,"j",null,"j",null,"j","x","j",null,null,null,null,null,"j",null,"j",null,null,null,"j",null,null,null,"j",null,"j",null,null,null,null,"xx","j",null,null,null,null,null,"j",null,null,"x","j",null,null,null,"j",null,"j",null,null,null,"j",null,null,null,"j",null,null,null,"j",null,null,null,"j",null,null,null,"j",null,null,null,"j",null,null,null,null,null,null,null,null,null,null,null,null,null,null,null,null,null,null,null,null,null,null,null,null,null,null,null,null,null,null,null,null,null,null,null,{"$f":"COUNTIF($B8:$DB8,\"j\")","v":20},{"$f":"COUNTIF($B8:$DB8,\"x\")+COUNTIF($B8:$DB8,\"xx\")","v":3},{"$f":"COUNTIF($B8:$DB8,\"r\")+COUNTIF($B8:$DB8,\"xx\")","v":1}]
["Défenseurs centraux"]
["Mangane Kader",null,null,null,null,null,null,null,null,null,null,null,null,null,null,null,null,null,"j",null,null,null,null,null,"j",null,"j",null,"j",null,null,"x","j",null,null,null,null,null,null,null,null,null,null,null,null,null,"j",null,"j","r","j",null,null,null,null,null,"j","x","j",null,"j",null,null,null,null,null,null,null,null,null,null,null,null,null,"j",null,null,null,null,null,null,null,null,null,null,null,null,null,null,null,null,null,null,null,null,null,null,null,null,null,null,null,null,null,null,null,null,null,{"$f":"COUNTIF($B10:$DB10,\"j\")","v":12},{"$f":"COUNTIF($B10:$DB10,\"x\")+COUNTIF($B10:$DB10,\"xx\")","v":2},{"$f":"COUNTIF($B10:$DB10,\"r\")+COUNTIF($B10:$DB10,\"xx\")","v":1}]
["Saad Felipe",null,"j",null,"j",null,null,null,"j",null,"j",null,null,null,null,"xx","j",null,null,null,"j",null,null,null,null,null,"j","r","j",null,null,null,null,null,null,null,null,null,null,null,null,null,null,null,null,null,null,null,null,null,null,null,null,null,null,null,null,null,null,null,null,null,"j",null,null,null,null,null,null,null,null,null,null,null,"j",null,null,null,null,null,null,null,null,null,null,null,null,null,null,null,null,null,null,null,null,null,null,null,null,null,null,null,null,null,null,null,null,null,{"$f":"COUNTIF($B11:$DB11,\"j\")","v":10},{"$f":"COUNTIF($B11:$DB11,\"x\")+COUNTIF($B11:$DB11,\"xx\")","v":1},{"$f":"COUNTIF($B11:$DB11,\"r\")+COUNTIF($B11:$DB11,\"xx\")","v":2}]
["Salmier Yoann",null,null,null,null,null,"j",null,"j",null,"j",null,null,null,"j",null,"j",null,"j",null,"j",null,null,null,null,null,null,null,"j",null,null,null,"j",null,null,null,"j",null,"j",null,null,null,"j",null,null,null,null,null,null,null,null,null,"j",null,null,null,"j",null,"j",null,"j",null,null,null,"j",null,"j",null,"j",null,null,null,"j",null,null,null,null,null,null,null,null,null,null,null,null,null,null,null,null,null,null,null,null,null,null,null,null,null,null,null,null,null,null,null,null,null,null,null,{"$f":"COUNTIF($B12:$DB12,\"j\")","v":20},{"$f":"COUNTIF($B12:$DB12,\"x\")+COUNTIF($B12:$DB12,\"xx\")","v":0},{"$f":"COUNTIF($B12:$DB12,\"r\")+COUNTIF($B12:$DB12,\"xx\")","v":0}]
["Seka Ernest",null,"j",null,"j",null,"j",null,"j","r","j",null,null,null,null,null,"j",null,"j",null,"j",null,null,null,"j",null,"j",null,null,null,null,null,"j",null,null,null,"j",null,"j",null,null,null,"j",null,null,null,"j","x","j",null,null,null,"j",null,null,null,"j",null,null,null,"j",null,null,null,"j",null,"j",null,"j",null,null,"x","j",null,"j",null,null,null,null,null,null,null,null,null,null,null,null,null,null,null,null,null,null,null,null,null,null,null,null,null,null,null,null,null,null,null,null,null,{"$f":"COUNTIF($B13:$DB13,\"j\")","v":24},{"$f":"COUNTIF($B13:$DB13,\"x\")+COUNTIF($B13:$DB13,\"xx\")","v":2},{"$f":"COUNTIF($B13:$DB13,\"r\")+COUNTIF($B13:$DB13,\"xx\")","v":1}]
["Défenseurs latéraux, gauche"]
["N'Dour Abdallah",null,"j",null,"j",null,"j",null,"j",null,"j",null,null,null,"j",null,"j",null,"j",null,"j",null,null,null,"j",null,"j",null,"j",null,null,"x","j",null,null,null,"j",null,"j",null,null,"x","j",null,null,null,null,"x","j",null,null,null,"j",null,null,null,null,null,"j",null,"j",null,null,null,"j","x","j","x","j",null,null,"x","j",null,"j",null,null,null,null,null,null,null,null,null,null,null,null,null,null,null,null,null,null,null,null,null,null,null,null,null,null,null,null,null,null,null,null,null,{"$f":"COUNTIF($B15:$DB15,\"j\")","v":25},{"$f":"COUNTIF($B15:$DB15,\"x\")+COUNTIF($B15:$DB15,\"xx\")","v":6},{"$f":"COUNTIF($B15:$DB15,\"r\")+COUNTIF($B15:$DB15,\"xx\")","v":0}]
["Milieux défensifs"]
["Aholou Jean Eudes",null,null,null,null,null,null,null,null,null,null,null,null,null,null,null,null,null,null,null,null,null,null,null,null,null,null,null,null,null,null,null,null,null,null,null,null,null,null,null,null,null,null,null,null,null,null,null,null,null,null,null,null,null,null,null,null,null,null,null,null,null,null,null,null,null,null,null,null,null,null,null,"j",null,"j"]
["Dos Santos Laurent",null,"j",null,null,null,"j",null,"j",null,"j",null,null,null,"j",null,"j",null,"j",null,"j",null,null,null,"j",null,"j",null,"j",null,null,null,"j",null,null,null,"j",null,"j",null,null,null,null,null,null,null,"j",null,null,null,null,null,null,null,null,null,"j",null,"j",null,null,null,null,null,null,null,"j",null,null,null,null,null,null,null,"j",null,null,null,null,null,null,null,null,null,null,null,null,null,null,null,null,null,null,null,null,null,null,null,null,null,null,null,null,null,null,null,null,null,{"$f":"COUNTIF($B18:$DB18,\"j\")","v":19},{"$f":"COUNTIF($B18:$DB18,\"x\")+COUNTIF($B18:$DB18,\"xx\")","v":0},{"$f":"COUNTIF($B18:$DB18,\"r\")+COUNTIF($B18:$DB18,\"xx\")","v":0}]
["Gonçalves Anthony",null,"j",null,"j","x","j",null,"j",null,"j",null,null,null,"j",null,"j",null,"j","x","j",null,null,null,"j",null,"j",null,null,null,null,null,"j",null,null,null,null,"x",null,null,null,null,null,null,null,null,null,null,null,null,null,null,null,null,null,null,null,null,null,null,null,null,null,null,null,null,"j",null,"j",null,null,null,"j",null,"j",null,null,null,null,null,null,null,null,null,null,null,null,null,null,null,null,null,null,null,null,null,null,null,null,null,null,null,null,null,null,null,null,null,{"$f":"COUNTIF($B19:$DB19,\"j\")","v":16},{"$f":"COUNTIF($B19:$DB19,\"x\")+COUNTIF($B19:$DB19,\"xx\")","v":3},{"$f":"COUNTIF($B19:$DB19,\"r\")+COUNTIF($B19:$DB19,\"xx\")","v":0}]
["Grimm Jérémy",null,"j",null,"j","x","j",null,"j",null,"j",null,null,null,"j","x","j","x","j",null,"j",null,null,null,"j",null,null,"x","j",null,null,null,"j",null,null,"x","j",null,"j",null,null,null,"j",null,null,null,null,null,"j",null,null,null,"j",null,null,"x","j",null,"j","x","j",null,null,"x","j",null,null,null,"j",null,null,null,"j",null,"j",null,null,null,null,null,null,null,null,null,null,null,null,null,null,null,null,null,null,null,null,null,null,null,null,null,null,null,null,null,null,null,null,null,24,8,0]
["N'Doye Mayoro",null,null,null,"j","x","j",null,"j",null,"j",null,null,null,"j",null,null,null,null,null,null,null,null,null,null,null,null,null,null,null,null,null,null,null,"j",null,"j",null,"j",null,null,null,"j",null,null,null,"j",null,"j",null,null,null,"j",null,null,null,"j","x","j",null,"j",null,null,null,"j",null,"j",null,"j",null,null,null,"j",null,null,null,null,null,null,null,null,null,null,null,null,null,null,null,null,null,null,null,null,null,null,null,null,null,null,null,null,null,null,null,null,null,null,null,19,2,0]
["Nogueira Vincent",null,"j",null,"j",null,"j",null,"j","x","j",null,null,null,null,null,"j",null,"j",null,"j",null,null,null,"j",null,"j",null,"j",null,null,null,"j",null,null,"x","j",null,"j",null,null,"x","j",null,"j",null,"j",null,"j",null,null,null,"j",null,null,null,null,null,"j","x","j",null,null,null,"j",null,null,"x","j",null,null,null,"j",null,"j",null,null,null,null,null,null,null,null,null,null,null,null,null,null,null,null,null,null,null,null,null,null,null,null,null,null,null,null,null,null,null,null,null,25,5,0]
["Othon Quentin",null,null,null,null,null,null,null,null,null,null,null,null,null,null,null,null,null,null,null,null,null,null,null,null,null,null,null,null,null,"j",null,null,null,"j",null,null,null,null,null,null,null,null,null,null,null,null,null,null,null,"j",null,null,null,"j",null,null,null,null,null,null,null,"j",null,null,null,null,null,null,null,null,null,null,null,null,null,null,null,null,null,null,null,null,null,null,null,null,null,null,null,null,null,null,null,null,null,null,null,null,null,null,null,null,null,null,null,null,null,5,0,0]
["Milieux offensifs"]
["Belahmeur Abdelhak",null,null,null,null,null,null,null,null,null,null,null,null,null,null,null,null,null,null,null,null,null,null,null,null,null,null,null,null,null,null,null,null,null,null,null,null,null,null,null,"j",null,null,null,"j",null,null,null,null,null,null,null,null,null,"j",null,null,null,null,null,null,null,null,null,null,null,null,null,null,null,null,null,null,null,null,null,null,null,null,null,null,null,null,null,null,null,null,null,null,null,null,null,null,null,null,null,null,null,null,null,null,null,null,null,null,null,null,null,{"$f":"COUNTIF($B25:$DB25,\"j\")","v":3},{"$f":"COUNTIF($B25:$DB25,\"x\")+COUNTIF($B25:$DB25,\"xx\")","v":0},{"$f":"COUNTIF($B25:$DB25,\"r\")+COUNTIF($B25:$DB25,\"xx\")","v":0}]
["Gragnic Vincent",null,"j","x","j",null,null,null,null,null,"j",null,null,null,"j",null,null,null,"j",null,"j",null,null,null,"j",null,"j",null,null,null,null,null,"j",null,null,null,"j",null,"j",null,null,null,null,null,null,null,"j",null,null,null,"j",null,"j",null,null,"x","j",null,"j",null,"j",null,null,null,"j",null,null,null,null,null,null,null,null,null,"j",null,null,null,null,null,null,null,null,null,null,null,null,null,null,null,null,null,null,null,null,null,null,null,null,null,null,null,null,null,null,null,null,null,{"$f":"COUNTIF($B26:$DB26,\"j\")","v":19},{"$f":"COUNTIF($B26:$DB26,\"x\")+COUNTIF($B26:$DB26,\"xx\")","v":2},{"$f":"COUNTIF($B26:$DB26,\"r\")+COUNTIF($B26:$DB26,\"xx\")","v":0}]
["Liénard Dimitri",null,null,null,null,null,null,null,null,null,null,null,"j",null,"j",null,"j",null,"j",null,"j",null,null,null,"j",null,"j","r","j",null,null,null,null,null,null,null,null,null,"j",null,null,null,"j",null,"j",null,"j",null,"j",null,null,null,"j",null,null,null,"j",null,"j","x","j",null,null,null,"j",null,"j",null,"j",null,null,null,"j",null,null,null,null,null,null,null,null,null,null,null,null,null,null,null,null,null,null,null,null,null,null,null,null,null,null,null,null,null,null,null,null,null,null,null,{"$f":"COUNTIF($B27:$DB27,\"j\")","v":21},{"$f":"COUNTIF($B27:$DB27,\"x\")+COUNTIF($B27:$DB27,\"xx\")","v":1},{"$f":"COUNTIF($B27:$DB27,\"r\")+COUNTIF($B27:$DB27,\"xx\")","v":1}]
["Pouye Oumar",null,null,null,null,null,null,null,null,null,null,null,null,null,null,null,null,null,null,null,null,null,null,null,null,null,null,null,null,null,"j",null,null,null,"j",null,null,null,null,null,"j",null,null,null,null,null,null,null,null,null,null,null,null,null,"j",null,null,null,null,null,null,null,null,null,null,null,null,null,null,null,null,null,null,null,null,null,null,null,null,null,null,null,null,null,null,null,null,null,null,null,null,null,null,null,null,null,null,null,null,null,null,null,null,null,null,null,null,null,{"$f":"COUNTIF($B28:$DB28,\"j\")","v":4},{"$f":"COUNTIF($B28:$DB28,\"x\")+COUNTIF($B28:$DB28,\"xx\")","v":0},{"$f":"COUNTIF($B28:$DB28,\"r\")+COUNTIF($B28:$DB28,\"xx\")","v":0}]
["Sacko Ihsan",null,null,null,"j",null,"j",null,"j",null,"j",null,null,null,"j",null,"j",null,null,null,null,null,null,null,null,null,null,null,"j",null,null,null,"j",null,null,null,"j",null,"j",null,null,null,"j",null,null,null,null,null,null,null,null,null,null,null,null,null,null,null,null,null,null,null,null,null,null,null,null,null,null,null,null,null,null,null,null,null,null,null,null,null,null,null,null,null,null,null,null,null,null,null,null,null,null,null,null,null,null,null,null,null,null,null,null,null,null,null,null,null,{"$f":"COUNTIF($B29:$DB29,\"j\")","v":11},{"$f":"COUNTIF($B29:$DB29,\"x\")+COUNTIF($B29:$DB29,\"xx\")","v":0},{"$f":"COUNTIF($B29:$DB29,\"r\")+COUNTIF($B29:$DB29,\"xx\")","v":0}]
["Attaquants"]
["Bahoken Stéphane",null,"j",null,"j",null,"j",null,"j",null,"j",null,null,null,"j",null,"j",null,"j",null,"j",null,null,null,"j",null,"j",null,null,null,null,null,null,null,null,null,null,null,null,null,null,null,null,null,null,null,"j",null,"j",null,null,null,"j",null,null,"x","j",null,"j",null,"j",null,null,null,"j",null,"j","x","j",null,null,"x","j",null,null,null,null,null,null,null,null,null,null,null,null,null,null,null,null,null,null,null,null,null,null,null,null,null,null,null,null,null,null,null,null,null,null,null,{"$f":"COUNTIF($B31:$DB31,\"j\")","v":21},{"$f":"COUNTIF($B31:$DB31,\"x\")+COUNTIF($B31:$DB31,\"xx\")","v":3},{"$f":"COUNTIF($B31:$DB31,\"r\")+COUNTIF($B31:$DB31,\"xx\")","v":0}]
["Benkaïd Hicham",null,null,null,null,null,null,null,null,null,null,null,null,null,null,null,null,null,null,null,null,null,"j",null,null,null,null,null,null,null,"j",null,null,null,"j",null,null,null,null,null,"j",null,null,"x","j",null,"j",null,null,null,"j",null,null,null,"j",null,null,null,null,null,null,null,"j",null,null,null,"j",null,"j",null,null,null,null,"x","j",null,null,null,null,null,null,null,null,null,null,null,null,null,null,null,null,null,null,null,null,null,null,null,null,null,null,null,null,null,null,null,null,null,{"$f":"COUNTIF($B32:$DB32,\"j\")","v":12},{"$f":"COUNTIF($B32:$DB32,\"x\")+COUNTIF($B32:$DB32,\"xx\")","v":2},{"$f":"COUNTIF($B32:$DB32,\"r\")+COUNTIF($B32:$DB32,\"xx\")","v":0}]
["Blayac Jérémy",null,null,null,null,null,null,null,null,null,null,null,null,null,null,null,null,null,"j",null,null,null,null,null,"j",null,null,null,"j",null,null,null,null,null,null,null,"j",null,"j",null,null,null,"j",null,null,null,"j",null,"j",null,null,null,"j",null,null,null,"j",null,"j",null,null,null,null,null,"j",null,"j",null,"j",null,null,null,"j",null,"j",null,null,null,null,null,null,null,null,null,null,null,null,null,null,null,null,null,null,null,null,null,null,null,null,null,null,null,null,null,null,null,null,null,{"$f":"COUNTIF($B33:$DB33,\"j\")","v":16},{"$f":"COUNTIF($B33:$DB33,\"x\")+COUNTIF($B33:$DB33,\"xx\")","v":0},{"$f":"COUNTIF($B33:$DB33,\"r\")+COUNTIF($B33:$DB33,\"xx\")","v":0}]
["Boutaïb Khalid",null,"j","x","j",null,"j",null,"j","x","j",null,null,null,"j",null,"j",null,"j",null,"j",null,null,null,"j",null,"j","x","j",null,null,null,"j",null,null,null,"j",null,"j",null,null,"x","j",null,null,null,null,null,"j",null,null,null,"j",null,null,null,"j",null,"j",null,"j",null,null,null,"j",null,null,null,null,null,null,null,null,null,null,null,null,null,null,null,null,null,null,null,null,null,null,null,null,null,null,null,null,null,null,null,null,null,null,null,null,null,null,null,null,null,null,null,{"$f":"COUNTIF($B34:$DB34,\"j\")","v":22},{"$f":"COUNTIF($B34:$DB34,\"x\")+COUNTIF($B34:$DB34,\"xx\")","v":4},{"$f":"COUNTIF($B34:$DB34,\"r\")+COUNTIF($B34:$DB34,\"xx\")","v":0}]
["Guillaume Baptiste",null,"j",null,"j",null,"j",null,null,null,null,null,null,null,null,null,null,null,null,null,null,null,"j",null,null,null,"j",null,"j",null,null,null,"j",null,null,null,"j",null,null,null,null,null,"j",null,null,null,"j",null,"j",null,null,"x","j",null,null,null,"j",null,"j",null,"j",null,null,null,"j","x","j",null,"j",null,null,null,"j",null,"j",null,null,null,null,null,null,null,null,null,null,null,null,null,null,null,null,null,null,null,null,null,null,null,null,null,null,null,null,null,null,null,null,null,{"$f":"COUNTIF($B35:$DB35,\"j\")","v":20},{"$f":"COUNTIF($B35:$DB35,\"x\")+COUNTIF($B35:$DB35,\"xx\")","v":2},{"$f":"COUNTIF($B35:$DB35,\"r\")+COUNTIF($B35:$DB35,\"xx\")","v":0}]
["Encadrement"]
["Laurey Thierry",null,null,null,null,null,null,null,null,null,null,null,null,null,null,null,null,null,null,null,null,null,null,null,null,null,null,null,null,null,null,null,null,null,null,null,null,null,null,null,null,null,null,null,null,null,null,null,null,null,null,null,null,null,null,null,null,null,null,null,null,null,null,null,null,null,null,null,null,null,null,null,null,null,null,null,null,null,null,null,null,null,null,null,null,null,null,null,null,null,null,null,null,null,null,null,null,null,null,null,null,null,null,null,null,null,null,null,{"$f":"COUNTIF($B37:$DB37,\"j\")","v":0},{"$f":"COUNTIF($B37:$DB37,\"x\")+COUNTIF($B37:$DB37,\"xx\")","v":0},{"$f":"COUNTIF($B37:$DB37,\"r\")+COUNTIF($B37:$DB37,\"xx\")","v":0}]
["Pietra François",null,null,null,null,null,null,null,null,null,null,null,null,null,null,null,null,null,null,null,null,null,null,null,null,null,null,null,null,null,null,null,null,null,null,null,null,null,null,null,null,null,null,null,null,null,null,null,null,null,null,null,null,null,null,null,null,null,null,null,null,null,null,null,null,null,null,null,null,null,null,null,null,null,null,null,null,null,null,null,null,null,null,null,null,null,null,null,null,null,null,null,null,null,null,null,null,null,null,null,null,null,null,null,null,null,null,null,{"$f":"COUNTIF($B38:$DB38,\"j\")","v":0},{"$f":"COUNTIF($B38:$DB38,\"x\")+COUNTIF($B38:$DB38,\"xx\")","v":0},{"$f":"COUNTIF($B38:$DB38,\"r\")+COUNTIF($B38:$DB38,\"xx\")","v":0}]
["Roi Sébastien",null,null,null,null,null,null,null,null,null,null,null,null,null,null,null,null,null,null,null,null,null,null,null,null,null,null,null,null,null,null,null,null,null,null,null,null,null,null,null,null,null,null,null,null,null,null,null,null,null,null,null,null,null,null,null,null,null,null,null,null,null,null,null,null,null,null,null,null,null,null,null,null,null,null,null,null,null,null,null,null,null,null,null,null,null,null,null,null,null,null,null,null,null,null,null,null,null,null,null,null,null,null,null,null,null,null,null,{"$f":"COUNTIF($B39:$DB39,\"j\")","v":0},{"$f":"COUNTIF($B39:$DB39,\"x\")+COUNTIF($B39:$DB39,\"xx\")","v":0},{"$f":"COUNTIF($B39:$DB39,\"r\")+COUNTIF($B39:$DB39,\"xx\")","v":0}]
[null,{"$f":"SUBTOTAL(3,B5:B39)","v":0},13,2,14,3,14,1,14,3,14,0,1,0,13,3,14,1,14,1,14,0,2,0,14,0,14,4,13,0,3,3,14,{"$f":"SUBTOTAL(3,AH5:AH39)","v":0},4,2,13,1,14,0,3,4,13,1,4,0,13,2,13,1,4,1,14,0,4,3,14,2,14,3,14,0,3,1,14,{"$f":"SUBTOTAL(3,BN5:BN39)","v":3},12,3,14,0,0,3,14,1,14,0,0,0,0,0,0,0,0,0,0,0,0,0,0,0,0,0,0,0,0,0,0,{"$f":"SUBTOTAL(3,CT5:CT39)","v":0},0,0,0,0,0,0,0,0,0,0,{"$f":"SUBTOTAL(9,DE5:DE39)","v":395},48,{"$f":"SUBTOTAL(9,DG5:DG39)","v":6}]

{"sheet":"Tabelle1","index":2,"n_rows":0,"n_cols":0,"rows_kept":0,"cut":false,"hidden":false,"merged":[]}